fUST/lending_fUST_20250517
["ID","MTS","AMOUNT","RATE_DAILY","PERIOD"]
[361321884,1747469435897,-496.28947033,0.00014242,2]
[361321885,1747469435907,-500.0,0.00014242,2]
[361321886,1747469435916,-500.0,0.00014242,2]
[361321887,1747469435925,-500.0,0.00014242,2]
[361321888,1747469435934,-500.0,0.00014242,2]
[361321889,1747469435943,-500.0,0.00014242,2]
[361321890,1747469435952,-500.0,0.00014242,2]
[361321891,1747469435961,-316.04407762,0.00014242,2]
[361321892,1747469435970,-500.0,0.00014242,2]
[361321893,1747469435979,-500.0,0.00014242,2]
[361321894,1747469435988,-500.0,0.00014242,2]
[361321895,1747469435998,-500.0,0.00014242,2]
[361321896,1747469436007,-500.0,0.00014242,2]
[361321897,1747469436016,-500.0,0.00014242,2]
[361321898,1747469436025,-500.0,0.00014242,2]
[361321899,1747469436034,-500.0,0.00014242,2]
[361321900,1747469436043,-500.0,0.00014242,2]
[361321901,1747469436053,-500.0,0.00014242,2]
[361321902,1747469436062,-500.0,0.00014242,2]
[361321903,1747469436071,-500.0,0.00014242,2]
[361321904,1747469436080,-500.0,0.00014242,2]
[361321905,1747469436089,-500.0,0.00014242,2]
[361321906,1747469436098,-550.0,0.00014242,2]
[361321907,1747469436107,-500.0,0.00014242,2]
[361321908,1747469436116,-600.0,0.00014242,2]
[361321909,1747469436126,-500.0,0.00014242,2]
[361321910,1747469436135,-151.0,0.00014243,2]
[361321911,1747469436144,-171.475073,0.00014243,2]
[361321912,1747469436154,-1662.98704,0.00014243,2]
[361321913,1747469436163,-1662.98704,0.00014243,2]
[361321914,1747469436172,-242.022122,0.00014244,2]
[361321915,1747469436181,-151.0,0.00014245,2]
[361321916,1747469436190,-151.416772,0.00014245,2]
[361321917,1747469436199,-151.0,0.00014245,2]
[361321918,1747469436208,-155.170333,0.00014245,2]
[361321919,1747469436217,-151.0,0.00014245,2]
[361321920,1747469436227,-151.0,0.00014245,2]
[361321921,1747469436235,-151.0,0.00014245,2]
[361321922,1747469436244,-152.547743,0.00014245,2]
[361321923,1747469436254,-151.747961,0.00014245,2]
[361321924,1747469436263,-151.0,0.00014245,2]
[361321925,1747469436271,-151.0,0.00014245,2]
[361321926,1747469436280,-151.0,0.00014245,2]
[361321927,1747469436290,-153.975971,0.00014245,2]
[361321928,1747469436299,-151.0,0.00014245,2]
[361321929,1747469436308,-151.0,0.00014245,2]
[361321930,1747469436320,-151.0,0.00014245,2]
[361321931,1747469436329,-151.0,0.00014245,2]
[361321932,1747469436338,-151.0,0.00014245,2]
[361321933,1747469436347,-151.0,0.00014245,2]
[361321934,1747469436356,-151.0,0.00014245,2]
[361321935,1747469436366,-151.0,0.00014245,2]
[361321936,1747469436375,-1662.98704,0.00014245,2]
[361321937,1747469436384,-1662.98704,0.00014245,2]
[361321938,1747469436393,-347.682186,0.00014245,2]
[361321939,1747469436403,-347.682186,0.00014245,2]
[361321940,1747469436412,-347.682186,0.00014245,2]
[361321941,1747469436421,-347.682186,0.00014245,2]
[361321942,1747469436430,-347.682186,0.00014245,2]
[361321943,1747469436439,-347.682186,0.00014245,2]
[361321944,1747469436449,-347.682186,0.00014245,2]
[361321945,1747469436458,-347.682186,0.00014245,2]
[361321946,1747469436467,-151.0,0.00014245,2]
[361321947,1747469436477,-151.0,0.00014245,2]
[361321948,1747469436486,-151.0,0.00014245,2]
[361321949,1747469436495,-151.0,0.00014245,2]
[361321950,1747469436504,-151.0,0.00014245,2]
[361321951,1747469436514,-1262.68,0.00014246,2]
[361321952,1747469436523,-450.0,0.00014246,2]
[361321953,1747469436532,-2238.93740051,0.00014249,2]
[361321954,1747469436541,-151.0,0.00014279,2]
[361321955,1747469436551,-151.0,0.00014279,2]
[361321956,1747469436560,-151.0,0.00014316,2]
[361321957,1747469436569,-151.0,0.00014316,2]
[361321958,1747469436578,-420.0,0.00014316,2]
[361321959,1747469436587,-407.0,0.00014316,2]
[361321960,1747469436596,-151.0,0.00014338,2]
[361321961,1747469436606,-151.0,0.00014338,2]
[361321962,1747469436615,-347.682186,0.00014338,2]
[361321963,1747469436625,-347.682186,0.00014338,2]
[361321964,1747469436635,-1680.0,0.00014359,2]
[361321965,1747469436644,-1262.68,0.00014383,2]
[361321966,1747469436653,-450.0,0.00014383,2]
[361321967,1747469436662,-150.239,0.00014406,2]
[361321968,1747469436671,-1662.98704,0.0001442,2]
[361321969,1747469436681,-1662.98704,0.0001442,2]
[361321970,1747469436691,-151.0,0.0001442,2]
[361321971,1747469436700,-1262.68,0.0001452,2]
[361321972,1747469436710,-450.0,0.0001452,2]
[361321973,1747469436719,-2238.93740051,0.00014575,2]
[361321974,1747469436728,-151.0,0.00014608,2]
[361321975,1747469436738,-1262.68,0.00014657,2]
[361321976,1747469436747,-554.27683583,0.00014657,2]
[361321977,1747469436757,-151.0,0.00014659,2]
[361321978,1747469436766,-151.0,0.0001466,2]
[361321979,1747469436776,-151.0,0.0001466,2]
[361321980,1747469436785,-1662.98704,0.0001466,2]
[361321981,1747469436794,-1662.98704,0.0001466,2]
[361321982,1747469436805,-347.682186,0.0001466,2]
[361321983,1747469436815,-347.682186,0.0001466,2]
[361321984,1747469436824,-151.0,0.0001466,2]
[361321985,1747469436833,-151.0,0.000147,2]
[361321986,1747469436843,-151.0,0.0001478,2]
[361321987,1747469436852,-264.101613,0.0001478,2]
[361321988,1747469436861,-1262.68,0.00014794,2]
[361321989,1747469436871,-151.0,0.000148,2]
[361321990,1747469436880,-24574.95259687,0.0001485,2]
[361321991,1747469436889,-152.671863,0.0001485,2]
[361321992,1747469436899,-151.0,0.0001485,2]
[361321993,1747469436908,-151.0,0.0001485,2]
[361321994,1747469436918,-151.0,0.0001485,2]
[361321995,1747469436928,-151.0,0.0001485,2]
[361321996,1747469436938,-176.98881,0.0001485,2]
[361321997,1747469436948,-151.0,0.0001485,2]
[361321998,1747469436958,-1662.98704,0.0001485,2]
[361321999,1747469436967,-1662.98703047,0.0001485,2]
[361322000,1747469436978,-347.682186,0.0001485,2]
[361322001,1747469436987,-347.682186,0.0001485,2]
[361322002,1747469436997,-151.0,0.0001485,2]
[361322003,1747469437007,-151.0,0.00014896,2]
[361322004,1747469437016,-347.682186,0.00014896,2]
[361322005,1747469437026,-347.682186,0.00014896,2]
[361322006,1747469437036,-151.0,0.00014897,2]
[361322007,1747469437046,-151.0,0.00014897,2]
[361322008,1747469437057,-153.810242,0.00014897,2]
[361322009,1747469437068,-151.0,0.00014897,2]
[361322010,1747469437078,-205.945975,0.00014897,2]
[361322011,1747469437087,-151.0,0.00014897,2]
[361322012,1747469437097,-151.0,0.00014897,2]
[361322013,1747469437106,-151.0,0.00014897,2]
[361322014,1747469437115,-151.0,0.00014897,2]
[361322015,1747469437125,-151.0,0.00014897,2]
[361322016,1747469437135,-151.0,0.00014897,2]
[361322017,1747469437144,-151.501754,0.00014897,2]
[361322018,1747469437153,-151.0,0.00014897,2]
[361322019,1747469437163,-151.0,0.00014897,2]
[361322020,1747469437172,-151.0,0.00014897,2]
[361322021,1747469437181,-1405.886942,0.00014897,2]
[361322022,1747469437191,-1405.886942,0.00014897,2]
[361322023,1747469437200,-151.0,0.00014897,2]
[361322024,1747469437209,-157.050291,0.00014897,2]
[361322025,1747469437218,-151.0,0.00014897,2]
[361322026,1747469437228,-151.0,0.00014897,2]
[361322027,1747469437237,-151.713892,0.00014897,2]
[361322028,1747469437246,-151.0,0.00014897,2]
[361322029,1747469437255,-151.0,0.00014897,2]
[361322030,1747469437265,-151.0,0.00014897,2]
[361322031,1747469437274,-220.625088,0.00014897,2]
[361322032,1747469437283,-151.0,0.00014897,2]
[361322033,1747469437294,-151.0,0.00014897,2]
[361322034,1747469437304,-151.0,0.00014897,2]
[361322035,1747469437315,-151.0,0.00014897,2]
[361322036,1747469437325,-151.0,0.00014897,2]
[361322037,1747469437335,-151.0,0.00014897,2]
[361322038,1747469437344,-151.0,0.00014897,2]
[361322039,1747469437355,-347.682186,0.00014897,2]
[361322040,1747469437364,-347.682186,0.00014897,2]
[361322041,1747469437374,-347.682186,0.00014897,2]
[361322042,1747469437383,-347.68219,0.00014897,2]
[361322043,1747469437395,-9127.74241308,0.00014897,2]
[361322044,1747469437404,-5000.0,0.00014897,2]
[361322045,1747469437413,-5000.0,0.00014897,2]
[361322046,1747469437422,-5000.0,0.00014897,2]
[361322047,1747469437431,-5000.0,0.00014897,2]
[361322048,1747469437440,-1500.0,0.000149,2]
[361322049,1747469437450,-1500.0,0.000149,2]
[361322050,1747469437459,-1500.0,0.000149,2]
[361322051,1747469437469,-1500.0,0.000149,2]
[361322052,1747469437479,-1500.0,0.000149,2]
[361322053,1747469437489,-1500.0,0.000149,2]
[361322054,1747469437499,-1500.0,0.000149,2]
[361322055,1747469437508,-1793.56,0.000149,2]
[361322056,1747469437519,-1500.0,0.000149,2]
[361322057,1747469437528,-1500.0,0.000149,2]
[361322058,1747469437538,-198.0,0.000149,4]
[361322059,1747469437549,-198.0,0.000149,3]
[361322060,1747469437559,-198.0,0.000149,2]
[361322061,1747469437569,-1500.0,0.000149,2]
[361322062,1747469437579,-151.0,0.000149,2]
[361322063,1747469437589,-151.0,0.000149,2]
[361322064,1747469437599,-151.0,0.000149,2]
[361322065,1747469437608,-151.0,0.000149,2]
[361322066,1747469437617,-151.0,0.000149,2]
[361322067,1747469437626,-151.0,0.000149,2]
[361322068,1747469437636,-152.479769,0.000149,2]
[361322069,1747469437645,-221.523074,0.000149,2]
[361322070,1747469437655,-200.0,0.000149,2]
[361322071,1747469437664,-1405.886942,0.000149,2]
[361322072,1747469437674,-1405.886942,0.000149,2]
[361322073,1747469437683,-1405.886942,0.000149,2]
[361322074,1747469437692,-231.63468562,0.000149,2]
[361323133,1747469551275,200.0,0.00025475,120]
[361323134,1747469603688,157.0,0.00026077,120]
[361323135,1747469611419,200.0,0.00027078,120]
[361323136,1747469672331,200.0,0.00026673,120]
[361323137,1747469697038,300.0,0.00027397,120]
[361323138,1747469706675,300.0,0.00027397,120]
[361323139,1747469717139,460.0189,0.00027397,120]
[361323140,1747469731364,200.0,0.0002684,120]
[361323141,1747469760580,1148.957347,0.00027397,120]
[361323142,1747469835275,5000.0,0.00012,2]
[361323143,1747470234707,1000.0,0.00027397,120]
[361323144,1747470241868,500.0,0.00027397,120]
[361323145,1747470248112,500.0,0.00027397,120]
[361323146,1747470256497,1000.0,0.00027397,120]
[361323147,1747470298225,500.0,0.00027397,120]
[361323148,1747470306529,500.0,0.00027397,120]
[361323149,1747470327266,500.0,0.00027397,120]
[361323150,1747470341255,500.0,0.00027397,120]
[361323151,1747470350154,500.0,0.00027397,120]
[361323153,1747470357092,500.0,0.00027397,120]
[361323156,1747470366341,500.0,0.00027397,120]
[361323157,1747470373039,500.0,0.00027397,120]
[361323158,1747470379444,500.0,0.00027397,120]
[361323159,1747470387707,500.0,0.00027397,120]
[361323160,1747470394128,500.0,0.00027397,120]
[361323161,1747470403048,500.0,0.00027397,120]
[361323162,1747470409868,500.0,0.00027397,120]
[361323163,1747470416145,500.0,0.00027397,120]
[361323164,1747470423505,500.0,0.00027397,120]
[361323165,1747470430671,500.0,0.00027397,120]
[361323166,1747470437626,500.0,0.00027397,120]
[361323167,1747470446065,500.0,0.00027397,120]
[361323168,1747470452909,500.0,0.00027397,120]
[361323169,1747470461438,500.0,0.00027397,120]
[361323173,1747470508481,500.0,0.00027397,120]
[361323178,1747470518976,500.0,0.00027397,120]
[361323179,1747470528078,500.0,0.00027397,120]
[361323236,1747470591385,298.007275,0.00027397,120]
[361323275,1747470638726,-900.79420782,0.00012365,2]
[361323276,1747470638738,-4452.23913018,0.00012365,2]
[361323277,1747470638747,-3345.56087982,0.000125,2]
[361323278,1747470638780,-500.0,0.000125,2]
[361323886,1747470743995,734.0,0.0002606,30]
[361323887,1747470745713,734.0,0.0002606,30]
[361323888,1747470746164,734.0,0.0002606,30]
[361323889,1747470746518,734.0,0.0002606,30]
[361323890,1747470746872,734.0,0.0002606,30]
[361323891,1747470747212,734.0,0.0002606,30]
[361323892,1747470747544,734.0,0.0002606,30]
[361323893,1747470747886,734.0,0.0002606,30]
[361323894,1747470748341,734.0,0.0002606,30]
[361323895,1747470748600,734.0,0.0002606,30]
[361323896,1747470898641,861.71801,0.00027397,120]
[361323899,1747471226108,-3000.0,0.00015,30]
[361323900,1747471226133,-3000.0,0.0001501,30]
[361323901,1747471226155,-3000.0,0.0001502,30]
[361323902,1747471226177,-1000.0,0.0001503,30]
[361323903,1747471340087,-2000.0,0.0001503,30]
[361323904,1747471340112,-3000.0,0.0001504,30]
[361323905,1747471340138,-3000.0,0.0001505,30]
[361323906,1747471340160,-2000.0,0.0001506,30]
[361323910,1747471385979,168.53883069,0.00026071,120]
[361323911,1747471393311,3075.5425875,0.00027397,120]
[361323912,1747471407871,5000.0,0.00012,2]
[361323913,1747471424257,3044.36617963,0.00012,2]
[361323914,1747471467134,-1000.0,0.0001506,30]
[361323915,1747471467159,-3000.0,0.0001507,30]
[361323916,1747471467182,-3000.0,0.0001508,30]
[361323917,1747471467205,-3000.0,0.0001509,30]
[361323918,1747471467226,-3000.0,0.000151,30]
[361323919,1747471467251,-3000.0,0.0001511,30]
[361323920,1747471467275,-3000.0,0.0001512,30]
[361323921,1747471467297,-1000.0,0.0001513,30]
[361323922,1747471586742,500.0,0.00027397,120]
[361323940,1747471831819,-649.57186558,0.0001227,2]
[361323941,1747471831828,-155.43912018,0.000125,2]
[361323942,1747471831838,-1003.98741539,0.00012913,2]
[361323951,1747471831977,-1286.64452371,0.00012913,2]
[361323953,1747471831987,-300.0,0.00013697,2]
[361323955,1747471831996,-450.0,0.00013698,2]
[361323957,1747471832006,-334.97,0.00013698,2]
[361323959,1747471832016,-215.21,0.00013698,2]
[361323960,1747471832025,-450.0,0.00013698,2]
[361323961,1747471832035,-361.08,0.00013698,2]
[361323962,1747471832044,-450.0,0.00013698,2]
[361323963,1747471832054,-450.0,0.00013698,2]
[361323964,1747471832063,-450.0,0.00013698,2]
[361323965,1747471832072,-500.0,0.00013698,2]
[361323966,1747471832082,-486.95,0.00013698,2]
[361323967,1747471832091,-450.0,0.00013698,2]
[361323968,1747471832101,-450.0,0.00013698,2]
[361323969,1747471832110,-791.47,0.00013698,2]
[361323970,1747471832119,-348.177054,0.00013699,2]
[361323971,1747471832129,-450.0,0.00013835,2]
[361323972,1747471832139,-550.05129057,0.00013835,2]
[361323973,1747471832148,-500.0,0.00013835,2]
[361323974,1747471832157,-791.47,0.00013835,2]
[361323975,1747471832167,-600.0,0.00013972,2]
[361323976,1747471832177,-791.47,0.00013972,2]
[361323977,1747471832187,-998.40506679,0.00013975,2]
[361323979,1747471832199,-12634.18372584,0.00013975,2]
[361323981,1747471832208,-212.29844686,0.00013975,2]
[361323982,1747471832217,-160.0,0.00013975,2]
[361323983,1747471832226,-447.78748011,0.00014028,2]
[361323984,1747471832237,-791.47,0.00014109,2]
[361323985,1747471832247,-602.72503225,0.00014126,3]
[361323986,1747471832256,-11482.0530819,0.00014126,2]
[361323988,1747471832266,-153.98072892,0.00014126,2]
[361323990,1747471832276,-876.21916503,0.00014126,2]
[361323991,1747471832285,-500.0,0.00014126,2]
[361323993,1747471832297,-272.74891524,0.00014126,2]
[361323994,1747471832307,-383.53341446,0.00014126,2]
[361323995,1747471832316,-500.0,0.00014126,2]
[361323996,1747471832326,-876.21916503,0.00014126,2]
[361323997,1747471832336,-500.0,0.00014126,2]
[361323998,1747471832345,-500.0,0.00014126,2]
[361323999,1747471832354,-876.21916503,0.00014126,2]
[361324000,1747471832364,-500.0,0.00014126,2]
[361324001,1747471832373,-876.21916503,0.00014126,2]
[361324002,1747471832383,-500.0,0.00014126,2]
[361324003,1747471832392,-876.21916503,0.00014126,2]
[361324004,1747471832400,-500.0,0.00014126,2]
[361324005,1747471832410,-876.21916503,0.00014126,2]
[361324006,1747471832419,-500.0,0.00014126,2]
[361324007,1747471832428,-876.21916503,0.00014126,2]
[361324008,1747471832437,-876.21916503,0.00014126,2]
[361324009,1747471832446,-250.45277582,0.00014126,2]
[361324010,1747471832457,-876.21916503,0.00014126,2]
[361324011,1747471832466,-876.21916503,0.00014126,2]
[361324012,1747471832475,-500.0,0.00014126,2]
[361324013,1747471832484,-876.21916503,0.00014126,2]
[361324014,1747471832493,-876.21916503,0.00014126,2]
[361324015,1747471832503,-500.0,0.00014126,2]
[361324016,1747471832513,-876.21916503,0.00014126,2]
[361324017,1747471832522,-876.21916503,0.00014126,2]
[361324018,1747471832532,-876.21916503,0.00014126,2]
[361324019,1747471832541,-876.21916503,0.00014126,2]
[361324020,1747471832552,-876.21916503,0.00014126,2]
[361324021,1747471832562,-876.21916503,0.00014126,2]
[361324022,1747471832571,-876.21916503,0.00014126,2]
[361324023,1747471832581,-876.21916503,0.00014126,2]
[361324024,1747471832590,-876.21916503,0.00014126,2]
[361324025,1747471832601,-876.21916503,0.00014126,2]
[361324026,1747471832610,-876.21916503,0.00014126,2]
[361324027,1747471832620,-876.21916503,0.00014126,2]
[361324028,1747471832629,-876.21916503,0.00014126,2]
[361324029,1747471832638,-876.21916503,0.00014126,2]
[361324030,1747471832648,-876.21916503,0.00014126,2]
[361324031,1747471832657,-876.21916503,0.00014126,2]
[361324032,1747471832667,-876.21916503,0.00014126,2]
[361324033,1747471832676,-876.21916503,0.00014126,2]
[361324034,1747471832685,-876.21916503,0.00014126,2]
[361324035,1747471832694,-876.21916503,0.00014126,2]
[361324036,1747471832704,-876.21916503,0.00014126,2]
[361324037,1747471832713,-876.21916503,0.00014126,2]
[361324038,1747471832722,-876.21916503,0.00014126,2]
[361324039,1747471832731,-876.21916503,0.00014126,2]
[361324040,1747471832741,-876.21916503,0.00014126,2]
[361324041,1747471832750,-876.21916503,0.00014126,2]
[361324042,1747471832758,-876.21916503,0.00014126,2]
[361324043,1747471832767,-876.21916503,0.00014126,2]
[361324044,1747471832776,-876.21916503,0.00014126,2]
[361324045,1747471832785,-876.21916503,0.00014126,2]
[361324046,1747471832794,-876.21916503,0.00014126,2]
[361324047,1747471832804,-876.21916503,0.00014126,2]
[361324048,1747471832813,-876.21916503,0.00014126,2]
[361324049,1747471832822,-876.21916503,0.00014126,2]
[361324050,1747471832831,-876.21916503,0.00014126,2]
[361324051,1747471832840,-876.21916503,0.00014126,2]
[361324052,1747471832849,-876.21916503,0.00014126,2]
[361324053,1747471832858,-876.21916503,0.00014126,2]
[361324054,1747471832867,-876.21916503,0.00014126,2]
[361324055,1747471832876,-876.21916503,0.00014126,2]
[361324056,1747471832886,-876.21916503,0.00014126,2]
[361324057,1747471832895,-876.21916503,0.00014126,2]
[361324058,1747471832904,-876.21916503,0.00014126,2]
[361324059,1747471832913,-876.21916503,0.00014126,2]
[361324060,1747471832922,-876.21916503,0.00014126,2]
[361324061,1747471832932,-876.21916503,0.00014126,2]
[361324062,1747471832941,-876.21916503,0.00014126,2]
[361324063,1747471832950,-876.21916503,0.00014126,2]
[361324064,1747471832960,-876.21916503,0.00014126,2]
[361324065,1747471832969,-876.21916503,0.00014126,2]
[361324066,1747471832979,-876.21916503,0.00014126,2]
[361324067,1747471832988,-849.25857533,0.00014126,2]
[361324068,1747471832997,-408.67256851,0.00014126,2]
[361324069,1747471833006,-849.25857533,0.00014126,2]
[361324070,1747471833015,-849.25857533,0.00014126,2]
[361324071,1747471833024,-849.25857533,0.00014126,2]
[361324072,1747471833035,-849.25857533,0.00014126,2]
[361324073,1747471833044,-849.25857533,0.00014126,2]
[361324074,1747471833055,-849.25857533,0.00014126,2]
[361324075,1747471833064,-849.25857533,0.00014126,2]
[361324076,1747471833074,-849.25857533,0.00014126,2]
[361324077,1747471833084,-849.25857533,0.00014126,2]
[361324078,1747471833094,-849.25857533,0.00014126,2]
[361324079,1747471833103,-849.25857533,0.00014126,2]
[361324080,1747471833113,-849.25857533,0.00014126,2]
[361324081,1747471833122,-849.25857533,0.00014126,2]
[361324082,1747471833132,-849.25857533,0.00014126,2]
[361324083,1747471833141,-849.25857533,0.00014126,2]
[361324084,1747471833151,-849.25857533,0.00014126,2]
[361324085,1747471833161,-849.25857533,0.00014126,2]
[361324086,1747471833170,-849.25857533,0.00014126,2]
[361324087,1747471833180,-849.25857533,0.00014126,2]
[361324088,1747471833192,-849.25857533,0.00014126,2]
[361324089,1747471833201,-849.25857533,0.00014126,2]
[361324090,1747471833211,-849.25857533,0.00014126,2]
[361324091,1747471833221,-849.25857533,0.00014126,2]
[361324092,1747471833233,-849.25857533,0.00014126,2]
[361324093,1747471833243,-849.25857533,0.00014126,2]
[361324094,1747471833261,-500.0,0.00014127,2]
[361324095,1747471833273,-500.0,0.00014127,2]
[361324096,1747471833283,-500.0,0.00014127,2]
[361324097,1747471833293,-500.0,0.00014127,2]
[361324098,1747471833305,-339.67710755,0.00014127,2]
[361324099,1747471833315,-500.0,0.00014127,2]
[361324100,1747471833325,-500.0,0.00014127,2]
[361324101,1747471833335,-500.0,0.00014127,2]
[361324102,1747471833345,-500.0,0.00014127,2]
[361324103,1747471833355,-500.0,0.00014127,2]
[361324104,1747471833364,-500.0,0.00014127,2]
[361324105,1747471833374,-500.0,0.00014127,2]
[361324106,1747471833383,-256.23085434,0.00014127,2]
[361324107,1747471833393,-500.0,0.00014127,2]
[361324108,1747471833402,-500.0,0.00014127,2]
[361324109,1747471833412,-500.0,0.00014127,2]
[361324110,1747471833421,-500.0,0.00014127,2]
[361324111,1747471833430,-500.0,0.00014127,2]
[361324112,1747471833440,-500.0,0.00014127,2]
[361324113,1747471833450,-500.0,0.00014127,2]
[361324114,1747471833459,-500.0,0.00014127,2]
[361324115,1747471833468,-500.0,0.00014127,2]
[361324116,1747471833478,-517.40262923,0.00014127,2]
[361324117,1747471833488,-500.0,0.00014127,2]
[361324118,1747471833498,-500.0,0.00014127,2]
[361324119,1747471833507,-500.0,0.00014127,2]
[361324120,1747471833517,-500.0,0.00014127,2]
[361324121,1747471833527,-500.0,0.00014127,2]
[361324122,1747471833536,-500.0,0.00014127,2]
[361324123,1747471833548,-400.0,0.00014127,2]
[361324124,1747471833557,-151.0,0.00014128,2]
[361324125,1747471833566,-151.0,0.00014128,2]
[361324126,1747471833576,-151.0,0.00014128,2]
[361324127,1747471833586,-151.761174,0.00014128,2]
[361324128,1747471833595,-151.0,0.00014128,2]
[361324129,1747471833605,-151.0,0.00014128,2]
[361324130,1747471833616,-151.0,0.00014128,2]
[361324131,1747471833626,-151.0,0.00014129,2]
[361324132,1747471833636,-151.0,0.00014129,2]
[361324133,1747471833646,-151.0,0.00014129,2]
[361324134,1747471833656,-151.0,0.00014133,2]
[361324135,1747471833665,-151.0,0.00014133,2]
[361324136,1747471833675,-151.0,0.00014133,2]
[361324137,1747471833684,-424.641069,0.00014133,2]
[361324138,1747471833693,-424.641069,0.00014133,2]
[361324139,1747471833703,-424.641069,0.00014133,2]
[361324140,1747471833713,-424.641069,0.00014133,2]
[361324141,1747471833723,-424.641069,0.00014133,2]
[361324142,1747471833732,-424.641069,0.00014133,2]
[361324143,1747471833742,-151.0,0.00014133,2]
[361324144,1747471833752,-171.182125,0.00014133,2]
[361324145,1747471833761,-151.0,0.00014134,2]
[361324146,1747471833770,-424.641069,0.00014134,2]
[361324147,1747471833780,-424.641069,0.00014134,2]
[361324148,1747471833790,-151.0,0.00014138,2]
[361324149,1747471833801,-151.0,0.00014138,2]
[361324150,1747471833810,-151.0,0.00014138,2]
[361324151,1747471833820,-447.7874801,0.00014246,2]
[361324152,1747471833830,-791.47,0.00014246,2]
[361324153,1747471833840,-404.0,0.00014276,2]
[361324154,1747471833849,-791.47,0.00014383,2]
[361324155,1747471833859,-447.7874801,0.00014464,2]
[361324156,1747471833868,-791.47,0.0001452,2]
[361324157,1747471833878,-791.47,0.00014657,2]
[361324158,1747471833891,-151.0,0.00014659,2]
[361324159,1747471833901,-447.7874801,0.00014682,2]
[361324160,1747471833910,-791.47,0.00014794,2]
[361324161,1747471833920,-155.8317897,0.00014825,2]
[361324162,1747471833929,-173.22,0.000149,2]
[361324163,1747471833939,-151.0,0.000149,2]
[361324164,1747471833948,-424.641069,0.000149,2]
[361324165,1747471833958,-424.641069,0.000149,2]
[361324166,1747471833967,-165.74979088,0.000149,2]
[361324167,1747471833977,-447.7874801,0.000149,2]
[361324168,1747471833987,-151.0,0.000149,2]
[361324169,1747471833997,-3998.69630481,0.000149,2]
[361324170,1747471834006,-791.47,0.00014931,2]
[361324171,1747471834017,-501.83711952,0.00014973,2]
[361324172,1747471834026,-500.0,0.00014973,2]
[361324173,1747471834035,-647.42689088,0.00014973,2]
[361324174,1747471834047,-500.0,0.00014973,2]
[361324175,1747471834056,-500.0,0.00014973,2]
[361324176,1747471834066,-500.0,0.00014973,2]
[361324177,1747471834075,-500.0,0.00014973,2]
[361324178,1747471834085,-500.0,0.00014973,2]
[361324179,1747471834094,-500.0,0.00014973,2]
[361324180,1747471834103,-500.0,0.00014973,2]
[361324181,1747471834113,-500.0,0.00014973,2]
[361324182,1747471834123,-231.27449128,0.00014973,2]
[361324183,1747471834133,-500.0,0.00014973,2]
[361324184,1747471834142,-500.0,0.00014973,2]
[361324185,1747471834152,-500.0,0.00014973,2]
[361324186,1747471834161,-500.0,0.00014973,2]
[361324187,1747471834171,-500.0,0.00014973,2]
[361324188,1747471834180,-500.0,0.00014973,2]
[361324189,1747471834192,-500.0,0.00014973,2]
[361324190,1747471834202,-500.0,0.00014973,2]
[361324191,1747471834212,-151.0,0.00014973,2]